bitfinex/quotes_BTCUSD_20230110
["timestamp","ask_amount","ask_price","bid_price","bid_amount"]
[1673359638846,1.32037101,17275.0,17274.0,0.578904]
[1673359639112,1.02037101,17275.0,17274.0,1.157808]
[1673359639384,0.5731058,17276.0,17274.0,1.39548589]
[1673359639635,0.5731058,17276.0,17275.0,1.0]
[1673359639898,0.5731058,17276.0,17275.0,2.157742]
[1673359640991,0.5731058,17276.0,17275.0,2.166742]
[1673359642016,0.5731058,17276.0,17275.0,2.51682489]
[1673359644026,0.5731058,17276.0,17275.0,2.51688489]
[1673359647945,0.5731058,17276.0,17275.0,0.587931]
[1673359648445,1.87716903,17276.0,17275.0,0.587931]
[1673359648710,2.04476903,17276.0,17275.0,0.00906]
[1673359649998,2.03976903,17276.0,17275.0,0.009]
[1673359652023,2.21317157,17276.0,17275.0,0.009]
[1673359652523,2.03976903,17276.0,17275.0,0.009]
[1673359652772,2.21317157,17276.0,17275.0,0.009]
[1673359653028,2.03976903,17276.0,17275.0,0.009]
[1673359653272,2.21317157,17276.0,17275.0,0.009]
[1673359653780,2.03976903,17276.0,17275.0,0.009]
[1673359654592,2.21317157,17276.0,17275.0,0.009]
[1673359655079,3.63133597,17276.0,17275.0,0.009]
[1673359655586,3.63133881,17276.0,17275.0,0.009]
[1673359656113,2.03976903,17276.0,17275.0,0.009]
[1673359656358,2.21317157,17276.0,17275.0,0.009]
[1673359656615,2.03976903,17276.0,17275.0,0.009]
[1673359658682,2.03976903,17276.0,17275.0,0.587871]
[1673359658950,1.73976903,17276.0,17275.0,0.587871]
[1673359659738,1.57216903,17276.0,17275.0,0.587871]
[1673359660485,1.74557157,17276.0,17275.0,0.587871]
[1673359660729,2.90358667,17276.0,17275.0,0.009]
[1673359661003,2.90358053,17276.0,17275.0,0.009]
[1673359661270,3.16367836,17276.0,17275.0,0.009]
[1673359662014,3.33705333,17276.0,17275.0,0.009]
[1673359662802,3.92840401,17276.0,17275.0,0.009]
[1673359663057,0.00560549,17274.0,17271.0,0.59151848]
[1673359663341,1.69247279,17273.0,17271.0,0.01252148]
[1673359663657,0.361171,17272.0,17271.0,0.01252148]
[1673359663877,0.3,17273.0,17271.0,0.39489914]
[1673359664114,0.3,17273.0,17272.0,0.3368537]
[1673359664366,0.19189832,17274.0,17272.0,0.9158247]
[1673359664618,0.00560549,17274.0,17272.0,0.9158247]
[1673359665126,0.67801081,17274.0,17272.0,0.9158247]
[1673359665930,0.67801081,17274.0,17273.0,1.0]
[1673359666178,0.00560549,17274.0,17273.0,1.89772717]
[1673359666434,0.00560549,17274.0,17273.0,2.71434306]
[1673359666689,0.00560549,17274.0,17273.0,3.46718361]
[1673359666961,0.00560549,17274.0,17273.0,3.03676917]
[1673359666962,0.06960549,17274.0,17273.0,3.03676917]
[1673359667214,0.00560549,17274.0,17273.0,3.76718361]
[1673359667473,0.13460549,17274.0,17273.0,3.77218361]
[1673359668012,0.13460549,17274.0,17273.0,3.94450023]
[1673359669062,0.13460549,17274.0,17273.0,3.77218361]
[1673359669304,0.13460549,17274.0,17273.0,3.34176917]
[1673359669567,0.13460549,17274.0,17273.0,3.04176917]
[1673359670083,0.13460549,17274.0,17273.0,2.68166517]
[1673359670359,0.13460549,17274.0,17273.0,3.04176717]
[1673359671113,0.13460549,17274.0,17273.0,3.26065589]
[1673359671420,0.13460549,17274.0,17273.0,4.5251672]
[1673359671661,0.13460549,17274.0,17273.0,5.06337358]
[1673359671912,0.13460549,17274.0,17273.0,4.69802111]
[1673359672171,0.13460549,17274.0,17273.0,5.03770587]
[1673359672424,0.00560549,17274.0,17273.0,5.03270587]
[1673359672741,0.00560549,17274.0,17273.0,4.69296345]
[1673359672952,0.01060549,17274.0,17273.0,5.10763337]
[1673359673194,0.00560549,17274.0,17273.0,5.18463337]
[1673359673456,0.00560549,17274.0,17273.0,4.77096345]
[1673359673457,0.01560549,17274.0,17273.0,4.77096345]
[1673359673718,0.01560549,17274.0,17273.0,5.12129002]
[1673359674012,0.01560549,17274.0,17273.0,5.01979826]
[1673359674225,0.01560549,17274.0,17273.0,5.02036813]
[1673359674477,0.01560549,17274.0,17273.0,4.58900672]
[1673359674747,0.01560549,17274.0,17273.0,4.99643036]
[1673359675022,0.01560549,17274.0,17273.0,5.02159365]
[1673359675557,0.01560549,17274.0,17273.0,5.2059802]
[1673359675796,0.01560549,17274.0,17273.0,5.0942802]
[1673359676042,0.01560549,17274.0,17273.0,4.72064035]
[1673359676859,0.0167058,17276.0,17273.0,5.40350234]
[1673359677093,0.0167058,17276.0,17275.0,2.51542594]
[1673359677349,0.0167058,17276.0,17275.0,5.83719621]
[1673359677602,0.0167058,17276.0,17275.0,6.25545594]
[1673359678384,0.0167058,17276.0,17275.0,6.83432694]
[1673359679400,0.008,17276.0,17275.0,6.67472494]
[1673359679667,0.00012641,17279.0,17276.0,0.3]
[1673359679910,0.00012641,17279.0,17278.0,1.97234185]
[1673359680163,0.00012641,17279.0,17278.0,3.82610844]
[1673359680413,0.00012641,17279.0,17278.0,3.94840955]
[1673359680668,0.00012641,17279.0,17278.0,4.1207514]
[1673359680924,0.00312641,17279.0,17278.0,4.2317514]
[1673359681440,0.00312641,17279.0,17278.0,4.82569907]
[1673359681709,0.00312641,17279.0,17278.0,5.14885938]
[1673359681957,0.00312641,17279.0,17278.0,3.75167931]
[1673359682222,0.00112641,17279.0,17278.0,3.64067931]
[1673359682480,0.00312641,17279.0,17278.0,3.78067931]
[1673359682731,0.00112641,17279.0,17278.0,3.64067931]
[1673359682990,0.00112641,17279.0,17278.0,4.11149261]
[1673359682991,0.00312641,17279.0,17278.0,4.11149261]
[1673359683506,0.00112641,17279.0,17278.0,3.9483323]
[1673359683774,0.00112641,17279.0,17278.0,4.44301253]
[1673359683775,0.00312641,17279.0,17278.0,4.44301253]
[1673359684053,0.00312641,17279.0,17278.0,4.0883323]
[1673359684364,0.00312641,17279.0,17278.0,4.26067415]
[1673359684614,0.0020739,17279.0,17278.0,4.48367415]
[1673359684920,0.0020739,17279.0,17278.0,4.74218692]
[1673359685181,0.003,17279.0,17278.0,5.57209141]
[1673359685447,0.003,17279.0,17278.0,5.74443325]
[1673359685757,1e-06,17279.0,17278.0,6.5772219]
[1673359686011,0.02418288,17280.0,17278.0,6.5772219]
[1673359686288,0.02418288,17280.0,17279.0,2.39583666]
[1673359686545,0.02295165,17282.0,17280.0,1.2581]
[1673359686803,0.02295165,17282.0,17281.0,2.1]
[1673359687087,0.02295165,17282.0,17281.0,4.52628501]
[1673359687358,0.02295165,17282.0,17281.0,5.12023268]
[1673359687622,0.02295165,17282.0,17281.0,4.52586978]
[1673359687888,0.02295165,17282.0,17281.0,3.895916]
[1673359688149,0.02295165,17282.0,17281.0,4.22520568]
[1673359688702,0.02295165,17282.0,17281.0,4.64787467]
[1673359689208,0.02295165,17282.0,17281.0,3.71858499]
[1673359689755,0.02295165,17282.0,17281.0,4.15758499]
[1673359690009,0.02295165,17282.0,17281.0,4.66528456]
[1673359690276,0.02295165,17282.0,17281.0,4.52628456]
[1673359690540,0.02295165,17282.0,17281.0,5.41536272]
[1673359691060,0.02295165,17282.0,17281.0,5.27636272]
[1673359691331,0.02295165,17282.0,17281.0,6.37346272]
[1673359691593,0.03918288,17285.0,17282.0,0.3]
[1673359691842,0.03918288,17285.0,17284.0,1.2]
[1673359692099,0.03918288,17285.0,17284.0,3.58519039]
[1673359692570,0.03918288,17285.0,17284.0,3.3475125]
[1673359693078,0.03918288,17285.0,17284.0,3.4445125]
[1673359693332,0.29111631,17288.0,17284.0,4.27613806]
[1673359693587,0.29111631,17288.0,17287.0,1.2]
[1673359693850,0.00628286,17290.0,17288.0,0.648]
[1673359694121,0.26471235,17292.0,17289.0,5.87602665]
[1673359694380,0.1,17293.0,17291.0,1.2]
[1673359694643,0.78640526,17293.0,17292.0,1.156604]
[1673359695153,0.78640526,17293.0,17292.0,0.81597989]
[1673359695155,0.78140526,17293.0,17292.0,0.578302]
[1673359695418,0.78140526,17293.0,17291.0,1.778303]
[1673359695419,0.3,17292.0,17291.0,1.0]
[1673359695692,0.661171,17292.0,17291.0,1.0]
[1673359695937,1.01202981,17292.0,17291.0,1.0]
[1673359696232,0.99059947,17292.0,17291.0,1.0]
[1673359696486,0.99059947,17292.0,17289.0,0.778402]
[1673359696487,1.17021879,17292.0,17289.0,0.778402]
[1673359696736,1.17021879,17292.0,17289.0,1.76316982]
[1673359696737,0.92074779,17292.0,17289.0,1.76316982]
[1673359696986,0.92074779,17292.0,17291.0,0.139]
[1673359697243,0.92074779,17292.0,17289.0,1.76316982]
[1673359697494,0.80904779,17292.0,17291.0,0.141]
[1673359697748,1.0973,17293.0,17291.0,2.73534789]
[1673359697749,0.6856,17293.0,17291.0,2.73534789]
[1673359698003,0.6856,17293.0,17292.0,1.92626828]
[1673359698004,0.095,17293.0,17292.0,1.92626828]
[1673359698263,0.095,17293.0,17292.0,2.416244]
[1673359698809,0.095,17293.0,17292.0,2.84435252]
[1673359699803,0.095,17293.0,17292.0,3.68900019]
[1673359700095,0.095,17293.0,17292.0,4.42292832]
[1673359700319,0.86864135,17297.0,17292.0,4.42292832]
[1673359700559,0.26993305,17298.0,17296.0,1.2]
[1673359700825,0.83841082,17298.0,17297.0,0.359521]
[1673359701074,0.92972739,17297.0,17296.0,1.23767789]
[1673359701325,0.92972739,17297.0,17296.0,1.0]
[1673359701326,1.29089839,17297.0,17296.0,1.0]
[1673359701592,0.26277295,17297.0,17296.0,1.0]
[1673359701844,0.98755601,17298.0,17295.0,1.52757855]
[1673359702090,0.87585601,17298.0,17297.0,0.14]
[1673359702343,0.87585601,17298.0,17296.0,0.42291948]
[1673359702629,0.361171,17297.0,17296.0,0.42291948]
[1673359702836,0.87585601,17298.0,17296.0,0.42291948]
[1673359702837,0.26635293,17298.0,17296.0,0.42291948]
[1673359703102,0.26635293,17298.0,17296.0,1.20108748]
[1673359703359,0.26635293,17298.0,17297.0,0.6]
[1673359703621,0.26635293,17298.0,17297.0,1.67637172]
[1673359703920,0.26635293,17298.0,17297.0,2.84828946]
[1673359704185,0.03050637,17299.0,17297.0,3.89271559]
[1673359704456,0.03050637,17299.0,17298.0,1.56191658]
[1673359704709,0.03050637,17299.0,17298.0,2.49950558]
[1673359704978,0.03050637,17299.0,17298.0,2.89950558]
[1673359705293,0.03050637,17299.0,17298.0,2.30555791]
[1673359705576,0.03050637,17299.0,17298.0,1.83456991]
[1673359705832,0.03050637,17299.0,17298.0,1.398486]
[1673359706093,0.03050637,17299.0,17298.0,1.259486]
[1673359706348,0.03050637,17299.0,17298.0,2.14222763]
[1673359706620,0.03050637,17299.0,17298.0,1.71397373]
[1673359706884,0.03050637,17299.0,17298.0,2.01397373]
[1673359707138,0.03050637,17299.0,17298.0,1.99243367]
[1673359707402,0.03050637,17299.0,17298.0,1.44291213]
[1673359707672,0.03050637,17299.0,17298.0,1.259486]
[1673359707960,0.03050637,17299.0,17298.0,1.47171022]
[1673359707961,0.66059162,17299.0,17298.0,1.47171022]
[1673359708237,0.66059162,17299.0,17298.0,0.41222422]
[1673359708495,0.66059162,17299.0,17298.0,0.07322422]
[1673359708496,1.07139162,17299.0,17298.0,0.07322422]
[1673359708749,1.43356262,17299.0,17298.0,0.21222422]
[1673359708999,1.43356262,17299.0,17298.0,1.04381216]
[1673359709000,0.33050637,17299.0,17298.0,1.04381216]
[1673359709247,0.03150637,17299.0,17298.0,1.18281216]
[1673359709541,0.03050637,17299.0,17298.0,1.04381216]
[1673359709777,0.03050637,17299.0,17298.0,0.44381216]
[1673359710269,0.33050637,17299.0,17298.0,0.44381216]
[1673359710609,0.9768795,17299.0,17298.0,0.07322422]
[1673359710786,1.4488505,17299.0,17298.0,0.21322422]
[1673359711029,1.5605505,17299.0,17298.0,0.07322422]
[1673359711277,0.80347737,17299.0,17298.0,0.21222422]
[1673359711522,0.80347737,17299.0,17298.0,0.44977212]
[1673359711523,0.69267737,17299.0,17298.0,0.44977212]
[1673359711772,0.69167737,17299.0,17298.0,0.44977212]
[1673359712019,0.69267737,17299.0,17298.0,0.58977212]
[1673359712513,0.69267737,17299.0,17298.0,0.69277212]
[1673359712514,0.69367737,17299.0,17298.0,0.69277212]
[1673359712771,0.69167737,17299.0,17298.0,0.44977212]
[1673359713273,0.69167737,17299.0,17298.0,0.07322422]
[1673359713797,1.27798421,17299.0,17298.0,0.21222422]
[1673359714042,1.27798421,17299.0,17298.0,0.07322422]
[1673359714043,1.50038421,17299.0,17298.0,0.07322422]
[1673359714308,1.50138421,17299.0,17298.0,0.21322422]
[1673359714554,1.50038421,17299.0,17298.0,0.07322422]
[1673359714794,0.96727089,17298.0,17296.0,0.67982862]
[1673359715057,0.472871,17297.0,17296.0,0.67982862]
[1673359715934,0.584371,17297.0,17296.0,0.67982862]
[1673359716212,0.3,17296.0,17293.0,0.31999376]
[1673359716482,0.1117,17294.0,17293.0,0.31999376]
[1673359716737,0.472871,17294.0,17293.0,0.31999376]
[1673359717259,0.472871,17294.0,17293.0,0.00015]
[1673359717260,0.584571,17294.0,17293.0,0.00015]
[1673359717512,0.584571,17294.0,17289.0,0.578397]
[1673359717513,1.12229351,17294.0,17291.0,0.3624919]
[1673359717763,0.66342251,17294.0,17293.0,0.034]
[1673359718014,1.13629351,17294.0,17293.0,0.034]
[1673359718535,1.01059351,17294.0,17291.0,0.42669675]
[1673359718789,0.661171,17293.0,17291.0,0.42669675]
[1673359719050,0.361171,17292.0,17291.0,0.42669675]
[1673359719316,0.361171,17292.0,17288.0,1.03831732]
[1673359719621,0.361171,17291.0,17289.0,0.35453046]
[1673359719884,0.53516348,17292.0,17288.0,0.60015]
[1673359719885,0.1117,17292.0,17288.0,0.60015]
[1673359720167,0.1117,17290.0,17289.0,0.295968]
[1673359720423,0.3,17291.0,17289.0,0.295968]
[1673359720679,0.87578083,17291.0,17289.0,0.295968]
[1673359720959,0.99348083,17291.0,17289.0,0.295968]
[1673359721237,0.014,17290.0,17289.0,0.329968]
[1673359721504,0.014,17290.0,17289.0,0.295968]
[1673359721766,0.014,17290.0,17289.0,0.329968]
[1673359722805,0.98748083,17291.0,17289.0,0.295968]
[1673359723057,1.06989289,17290.0,17289.0,0.034]
[1673359723314,1.18059289,17290.0,17289.0,0.034]
[1673359724319,0.583571,17290.0,17289.0,0.23767789]
[1673359724335,0.583571,17290.0,17289.0,0.03]
[1673359724337,0.361171,17290.0,17289.0,0.03]
[1673359724590,0.007,17290.0,17289.0,0.42695042]
[1673359726304,0.19119,17290.0,17289.0,0.42695042]
[1673359726541,0.19119,17290.0,17289.0,0.059]
[1673359726772,0.007,17290.0,17289.0,0.059]
[1673359727019,0.007,17290.0,17289.0,0.05913274]
[1673359727260,0.007,17290.0,17289.0,0.059]
[1673359728033,0.007,17290.0,17289.0,0.05913274]
[1673359728271,0.007,17290.0,17289.0,0.637402]
[1673359728776,0.007,17290.0,17289.0,1.215804]
[1673359729024,0.007,17290.0,17289.0,1.21593674]
[1673359729292,0.007,17290.0,17289.0,1.215804]
[1673359730048,0.007,17290.0,17289.0,1.5576458]
[1673359730546,0.007,17290.0,17289.0,1.9173538]
[1673359730796,0.007,17290.0,17289.0,1.5576458]
[1673359731803,0.007,17290.0,17289.0,1.9173538]
[1673359732822,0.007,17290.0,17289.0,2.2173538]
[1673359733069,0.007,17290.0,17289.0,1.9173538]
[1673359734852,0.00706,17290.0,17289.0,2.2173538]
[1673359736123,0.00706,17290.0,17289.0,1.9173538]
[1673359736404,0.00706,17290.0,17289.0,2.2173538]
[1673359736622,0.00706,17290.0,17289.0,1.8576458]
[1673359736861,0.00699412,17290.0,17289.0,1.8576458]
[1673359737113,0.00699412,17290.0,17289.0,2.0576458]
[1673359737375,0.00699412,17290.0,17289.0,2.4173538]
[1673359738648,0.00699412,17290.0,17289.0,2.72430158]
[1673359738921,0.00432294,17290.0,17289.0,2.72430158]
[1673359739424,6e-05,17290.0,17289.0,2.66530158]
[1673359739685,0.01006,17290.0,17289.0,2.73730158]
[1673359740238,0.01006,17290.0,17289.0,2.66530158]
[1673359740239,6e-05,17290.0,17289.0,2.66530158]
[1673359740458,0.01006,17290.0,17289.0,2.73730158]
[1673359740963,0.01006,17290.0,17289.0,2.62580158]
[1673359741222,0.01006,17290.0,17289.0,1.900212]
[1673359741521,0.01006,17290.0,17289.0,2.16136859]
[1673359742270,6e-05,17290.0,17289.0,2.08936859]
[1673359742529,0.01106,17290.0,17289.0,2.15436859]
[1673359742791,0.01106,17290.0,17289.0,2.19040015]
[1673359743062,6e-05,17290.0,17289.0,2.42540015]
[1673359743326,0.01106,17290.0,17289.0,2.19040015]
[1673359743602,0.19525,17290.0,17289.0,1.221804]
[1673359743853,0.76484866,17290.0,17289.0,1.221804]
[1673359744687,0.75384866,17290.0,17289.0,1.156804]
[1673359744942,6e-05,17290.0,17289.0,1.156804]
[1673359745953,0.01306,17290.0,17289.0,1.210804]
[1673359746204,0.19725,17290.0,17289.0,1.210804]
[1673359746999,0.19725,17290.0,17289.0,0.632402]
[1673359747212,0.01306,17290.0,17289.0,0.98428455]
[1673359747461,0.01306,17290.0,17289.0,1.56268655]
[1673359747713,0.01306,17290.0,17289.0,1.56256012]
[1673359748474,0.01306,17290.0,17289.0,0.40588255]
[1673359748718,0.01306,17290.0,17289.0,0.98415812]
[1673359748719,0.374231,17290.0,17289.0,0.98415812]
[1673359748967,0.01306,17290.0,17289.0,1.23415812]
[1673359749489,0.01306,17290.0,17289.0,3.14616629]
[1673359749738,0.01306,17290.0,17289.0,3.49504368]
[1673359750570,0.01306,17290.0,17289.0,3.19504368]
[1673359750800,0.01306,17290.0,17289.0,2.83761803]
[1673359752132,0.01306,17290.0,17289.0,3.19491725]
[1673359752391,0.01306,17290.0,17289.0,2.83520925]
[1673359752640,0.19725,17290.0,17289.0,1.83520925]
[1673359753146,0.01306,17290.0,17289.0,1.83520925]
[1673359755028,0.01306,17290.0,17289.0,2.83520925]
[1673359755276,0.01306,17290.0,17289.0,2.83533568]
[1673359755536,0.01306,17290.0,17289.0,2.83520925]
[1673359755841,0.69996905,17290.0,17289.0,1.83520925]
[1673359757429,0.69996905,17290.0,17289.0,1.460804]
[1673359757687,1.23443288,17290.0,17289.0,1.460804]
[1673359757949,0.87326188,17290.0,17289.0,0.882402]
[1673359758201,0.87326188,17290.0,17289.0,0.88252843]
[1673359758202,1.23443288,17290.0,17289.0,0.88252843]
[1673359758514,0.87326188,17290.0,17289.0,0.882402]
[1673359758791,0.87326188,17290.0,17289.0,1.460804]
[1673359759048,0.01306,17290.0,17289.0,2.460804]
[1673359759304,0.01306,17290.0,17289.0,2.46093043]
[1673359759552,0.01306,17290.0,17289.0,2.460804]
[1673359760307,0.01306,17290.0,17289.0,2.46072409]
[1673359760573,0.70065715,17290.0,17289.0,1.46072409]
[1673359760821,0.70065715,17290.0,17289.0,0.88232209]
[1673359760822,1.17394998,17290.0,17289.0,0.88232209]
[1673359761313,1.00065715,17290.0,17289.0,0.88232209]
[1673359761564,0.70065715,17290.0,17289.0,0.88232209]
[1673359761814,0.70065715,17290.0,17289.0,1.46072409]
[1673359762063,0.01306,17290.0,17289.0,1.46072409]
[1673359762318,0.01306,17290.0,17289.0,2.78107859]
[1673359763323,1.0010702,17290.0,17289.0,1.46072409]
[1673359763574,1.3622412,17290.0,17289.0,0.88232209]
[1673359763824,2.77921088,17290.0,17289.0,0.88232209]
[1673359764077,2.77921088,17290.0,17289.0,0.30392009]
[1673359764332,2.9525037,17290.0,17289.0,0.30392009]
[1673359764578,2.89026102,17290.0,17289.0,0.30392009]
[1673359764830,2.51922178,17290.0,17289.0,0.30392009]
[1673359765078,1.00102034,17290.0,17289.0,0.30392009]
[1673359765325,2.51922011,17290.0,17289.0,0.30392009]
[1673359765818,2.77915935,17290.0,17289.0,0.30392009]
[1673359766066,2.51922011,17290.0,17289.0,0.30392009]
[1673359766853,2.51922011,17290.0,17289.0,0.88232209]
[1673359766854,0.64358737,17290.0,17289.0,0.88232209]
[1673359767116,0.64358737,17290.0,17289.0,1.46072409]
[1673359768133,1.00475837,17290.0,17289.0,1.46072409]
[1673359768394,2.33502351,17290.0,17289.0,1.46072409]
[1673359769166,0.64358737,17290.0,17289.0,1.46072409]
[1673359770702,0.01306,17290.0,17289.0,1.46072409]
[1673359771707,0.87810443,17291.0,17289.0,1.46072409]
[1673359771708,0.82680569,17291.0,17289.0,1.46072409]
[1673359771961,1.51819416,17290.0,17289.0,1.46072409]
[1673359772216,1.69143713,17290.0,17289.0,1.46072409]
[1673359772492,2.39186793,17290.0,17289.0,1.46072409]
[1673359772723,2.39186793,17290.0,17289.0,0.88232209]
[1673359772980,2.65180717,17290.0,17289.0,0.88232209]
[1673359773487,3.59756584,17290.0,17289.0,0.30392009]
[1673359773754,4.29466999,17290.0,17289.0,0.30392009]
[1673359773999,3.93240155,17290.0,17289.0,0.30392009]
[1673359774260,3.58608019,17290.0,17289.0,0.25]
[1673359774514,3.23196408,17290.0,17289.0,0.25]
[1673359774770,3.25167638,17290.0,17289.0,0.33344967]
[1673359775537,3.97518031,17290.0,17289.0,0.33344967]
[1673359775806,0.20311487,17288.0,17285.0,0.57957074]
[1673359776059,0.20311487,17288.0,17285.0,0.57972074]
[1673359776060,0.1117,17286.0,17285.0,0.57972074]
[1673359776367,0.472871,17286.0,17285.0,0.99115655]
[1673359776588,0.1117,17286.0,17285.0,0.99115655]
[1673359776844,0.472871,17286.0,17285.0,0.99115655]
[1673359777101,0.1117,17286.0,17285.0,0.99115655]
[1673359777346,0.1257,17286.0,17285.0,0.60672074]
[1673359777633,0.63085247,17286.0,17285.0,0.60672074]
[1673359777882,0.51915247,17286.0,17285.0,0.60672074]
[1673359778380,0.51915247,17286.0,17285.0,0.60657074]
[1673359778639,0.4117,17287.0,17285.0,0.60657074]
[1673359778954,0.3,17287.0,17285.0,0.60657074]
[1673359779223,0.3,17287.0,17285.0,1.18510674]
[1673359779727,0.3,17287.0,17285.0,1.15810674]
[1673359780007,0.012,17287.0,17285.0,1.88485007]
[1673359780281,0.012,17287.0,17286.0,1.17649178]
[1673359780534,0.012,17287.0,17286.0,2.33349578]
[1673359781304,0.012,17287.0,17286.0,2.16853676]
[1673359781625,0.20311487,17288.0,17286.0,2.8826112]
[1673359781854,0.013,17287.0,17286.0,2.5788292]
[1673359782124,0.013,17287.0,17286.0,3.58431676]
[1673359782370,0.013,17287.0,17286.0,3.75604608]
[1673359783139,0.20311487,17288.0,17286.0,3.70004608]
[1673359783399,0.20311487,17288.0,17287.0,0.359759]
[1673359783653,0.21711487,17288.0,17287.0,1.816697]
[1673359783916,0.21711487,17288.0,17287.0,1.456938]
[1673359784189,0.21711487,17288.0,17287.0,3.19218199]
[1673359784456,0.20311487,17288.0,17287.0,3.77477719]
[1673359784718,0.20311487,17288.0,17287.0,3.84184869]
[1673359784973,0.20311487,17288.0,17287.0,3.82084869]
[1673359785989,0.20411487,17288.0,17287.0,3.742407]
[1673359786251,0.20311487,17288.0,17287.0,3.24902722]
[1673359786510,0.20311487,17288.0,17287.0,2.73942697]
[1673359786511,0.20411487,17288.0,17287.0,2.73942697]
[1673359786981,0.20411487,17288.0,17287.0,2.99702095]
[1673359787232,0.20311487,17288.0,17287.0,2.60042697]
[1673359787487,0.20411487,17288.0,17287.0,3.14860619]
[1673359787741,0.20411487,17288.0,17287.0,2.54860619]
[1673359787998,0.20411487,17288.0,17287.0,2.17657422]
[1673359788247,0.20411487,17288.0,17287.0,2.06487422]
[1673359788494,0.20411487,17288.0,17287.0,1.70511722]
[1673359788749,0.20411487,17288.0,17287.0,2.06487422]
[1673359789019,0.20411487,17288.0,17287.0,1.70511722]
[1673359789291,0.86481763,17288.0,17287.0,1.295938]
[1673359789546,0.86481763,17288.0,17287.0,1.545938]
[1673359790059,0.80758198,17288.0,17287.0,1.545938]
[1673359790307,0.80758198,17288.0,17287.0,0.967469]
[1673359790554,0.80658198,17288.0,17287.0,0.828469]
[1673359790804,0.80758198,17288.0,17287.0,0.968469]
[1673359791805,0.14687922,17288.0,17287.0,0.968469]
[1673359792327,0.14687922,17288.0,17287.0,1.54719055]
[1673359792580,0.14687922,17288.0,17287.0,1.546938]
[1673359793355,0.14687922,17288.0,17287.0,0.968469]
[1673359793601,0.14687922,17288.0,17287.0,1.546938]
[1673359795113,0.14687922,17288.0,17287.0,2.39355786]
[1673359795368,0.14687922,17288.0,17287.0,3.66489111]
[1673359795631,0.14687922,17288.0,17287.0,3.53692308]
[1673359795876,0.14687922,17288.0,17287.0,3.206695]
[1673359796126,0.14687922,17288.0,17287.0,3.37872697]
[1673359796871,0.14687922,17288.0,17287.0,3.54684913]
[1673359797094,0.14687922,17288.0,17287.0,3.42582085]
[1673359797639,0.14687922,17288.0,17287.0,3.72582085]
[1673359798147,0.14687922,17288.0,17287.0,3.42582085]
[1673359798399,0.14687922,17288.0,17287.0,3.4255683]
[1673359798906,0.14687922,17288.0,17287.0,3.42582085]
[1673359799663,0.14687922,17288.0,17287.0,3.4250683]
[1673359799914,0.14687922,17288.0,17287.0,3.42676386]
[1673359800170,0.14687922,17288.0,17287.0,3.4250683]
[1673359800935,0.14687922,17288.0,17287.0,3.42676386]
[1673359801238,0.14687922,17288.0,17287.0,3.39577543]
[1673359801513,0.14687922,17288.0,17287.0,3.69577543]
[1673359801763,0.14687922,17288.0,17287.0,3.69301843]
[1673359802454,0.14687922,17288.0,17287.0,3.39001843]
[1673359803192,0.1321913,17288.0,17287.0,3.39001843]
[1673359803943,0.1321913,17288.0,17287.0,3.38832287]
[1673359804190,0.1321913,17288.0,17287.0,2.02856587]
[1673359804702,0.68830922,17288.0,17287.0,1.45009687]
[1673359804945,0.68830922,17288.0,17287.0,2.02889057]
[1673359805196,0.68830922,17288.0,17287.0,2.02856587]
[1673359805968,0.68830922,17288.0,17287.0,1.45009687]
[1673359805969,0.55711792,17288.0,17287.0,1.45009687]
[1673359806204,0.55711792,17288.0,17287.0,0.962212]
[1673359807000,0.91828892,17288.0,17287.0,0.39]
[1673359807526,2.24858933,17288.0,17287.0,0.39]
[1673359807777,2.50820973,17288.0,17287.0,0.39]
[1673359808346,2.50720973,17288.0,17287.0,0.25]
[1673359808543,2.50720973,17288.0,17287.0,0.281]
[1673359808796,2.12417208,17288.0,17287.0,0.281]
[1673359809050,3.39495042,17288.0,17287.0,0.281]
[1673359809304,3.61970384,17288.0,17287.0,0.281]
[1673359809621,2.8789907,17288.0,17287.0,0.281]
[1673359809832,2.8789907,17288.0,17287.0,0.25]
[1673359810089,2.8789907,17288.0,17287.0,0.281]
[1673359810352,2.8789907,17288.0,17287.0,0.25]
[1673359810642,3.4574257,17288.0,17287.0,0.25]
[1673359810894,3.45741829,17288.0,17287.0,0.25]
[1673359811409,3.49241829,17288.0,17287.0,0.257]
[1673359812417,4.24398659,17288.0,17287.0,0.257]
[1673359813180,4.50350384,17288.0,17287.0,0.257]
[1673359813474,4.57822714,17288.0,17287.0,0.257]
[1673359813691,0.12061205,17286.0,17285.0,6.00104674]
[1673359813939,0.76644926,17286.0,17285.0,6.00104674]
[1673359814193,1.9236694,17286.0,17285.0,6.25104674]
[1673359814754,2.18311871,17286.0,17285.0,6.25104674]
[1673359814979,3.87064927,17286.0,17285.0,6.27904674]
[1673359815239,4.04360668,17286.0,17285.0,6.27904674]
[1673359815489,4.7211571,17286.0,17285.0,6.27904674]
[1673359816286,4.1292939,17286.0,17285.0,6.27904674]
[1673359816516,4.1292939,17286.0,17285.0,6.25104674]
[1673359817266,3.86984459,17286.0,17285.0,6.25104674]
[1673359817522,4.1712939,17286.0,17285.0,6.25904674]
[1673359818053,4.63844938,17286.0,17285.0,6.25904674]
[1673359818333,4.79608703,17286.0,17285.0,6.25904674]
[1673359818622,4.56185461,17286.0,17285.0,6.25904674]
[1673359818898,5.02310161,17286.0,17285.0,6.25904674]
[1673359819924,5.4548711,17286.0,17285.0,6.25904674]
[1673359820181,5.02310161,17286.0,17285.0,4.89158764]
[1673359820438,6.22109267,17286.0,17285.0,4.89158764]
[1673359820712,6.74091891,17286.0,17285.0,4.89158764]
[1673359821272,8.47752588,17286.0,17285.0,4.89158764]
[1673359821536,7.34091891,17286.0,17285.0,4.89158764]
[1673359822038,6.74091891,17286.0,17285.0,4.89158764]
[1673359822278,6.74091891,17286.0,17285.0,10.89158764]
[1673359822531,5.59970161,17286.0,17285.0,10.88358764]
[1673359822802,5.73570161,17286.0,17285.0,10.88758764]
[1673359823318,6.16688688,17286.0,17285.0,10.88758764]
[1673359823569,6.16688688,17286.0,17285.0,10.88858764]
[1673359823869,6.16688688,17286.0,17285.0,10.63758764]
[1673359824395,6.63351303,17286.0,17285.0,10.63758764]
[1673359824683,5.62377789,17286.0,17285.0,10.63758764]
[1673359825533,5.92377789,17286.0,17285.0,10.63758764]
[1673359826059,6.34677337,17286.0,17285.0,10.63758764]
[1673359826321,6.94129421,17286.0,17285.0,10.63758764]
[1673359826583,5.92378258,17286.0,17285.0,10.63758764]
[1673359827134,6.77796333,17286.0,17285.0,10.63758764]
[1673359827387,6.11723087,17286.0,17285.0,10.63758764]